Workbook

Sheet 信息价 (hidden)
A1: 泰和县马市生态文化旅游特色小镇PPP项目-马市镇蜀口村滨江栈道景观工程材料采购信息价汇总表
A2: 发包单位：江西千和旅游发展有限公司 | T2: 单位：元 | AE2: 单位：元
F3: 成本价 | I3: 信息价 | P3: 对上报价 | W3: 上报价
A4: 序号 | B4: 名称 | C4: 规格 | D4: 单位 | E4: 工程量 | F4: 含税现金到场价 2019.5月 | G4: 2018.12月均价 分包参考 | H4: 含税现金到场价，分包参考 | I4: 含税信息价（含税、到货价） | P4: 上报不含税价 | Q4: 上报含税价 | R4: 招标代理价格 | S4: 税率 | T4: 备注 | U4: 合作单位/信息来源 | V4: 联系人及电话 | W4: 不含税押款市场价 | X4: 不含税市场价 | Y4: 其中 | AD4: 含税市场价 | AE4: 含税押款市场价 | AF4: 税率 | AG4: 备注 | AH4: 上报毛利
I5: 18.11 | J5: 18.12 | K5: 19.1 | L5: 19.2 | M5: 19.3 | N5: 19.4 | O5: 平均价 | Y5: 出厂价 | Z5: 供应商家利润 | AA5: 运杂费 | AB5: 采购及保管费 | AC5: 运输损耗费
A6: 1 | B6: H型钢 | C6: 200*204H型钢梁 | D6: t | E6: 362.49 | F6: 4340 | G6: 4210 | H6: 4750 | I6: 4356 | J6: 4192 | K6: 4171.75 | L6: 4212.15 | M6: 4274.25 | N6: 4253.75 | O6: =AVERAGE(I6:N6) -> 4243.3 | P6: =I6/1.13 -> 3854.9 | Q6: =I6 -> 4356.0 | R6: 7919.89 | S6: 13% | T6: Q235/SS400，200*200*8*12，运费：50元/吨 | U6: 湖南盛世达钢材贸易有限公司 | V6: 刘地红：180 7012 3460
A7: 2 | B7: 钢板 | C7: 5mm厚钢板 | D7: t | E7: =6015*39.25/1000 -> 236.09 | F7: 4210 | G7: 4210 | H7: 4450 | I7: 4284 | J7: 4171 | K7: 4120.5 | L7: 4151.25 | M7: 4233.25 | N7: 4438.25 | O7: 4233.0 | P7: =I7/1.13 -> 3791.2 | Q7: 4284.0 | R7: 4600.00 | T7: Q235B/SS400，5.5厚，热轧，运费：50元/吨 | U7: 湖南盛世达钢材贸易有限公司 | V7: 刘地红：180 7012 3460
A8: 3 | B8: 角铁 | C8: 50*50 | D8: t | E8: =1842.17*8*0.05*3.77/1000 -> 2.78 | F8: 4470 | G8: 4560 | H8: 4980 | I8: 4780 | J8: 4540.75 | K8: 4469 | L8: 4458.75 | M8: 4469 | N8: 4499.75 | O8: 4536.2 | P8: 4230.1 | Q8: 4780.0 | T8: Q235,5毫米厚，运费：50元/吨 | U8: 湖南盛世达钢材贸易有限公司 | V8: 刘地红：180 7012 3460
A9: 4 | B9: 钢筋 | C9: HPB400φ10 | D9: t | E9: 2.43 | F9: 4520 | G9: 4300 | H9: 4480 | I9: 4800 | J9: 4800 | K9: 4200 | L9: 4200 | M9: 4200 | N9: 4350 | O9: 4425.0 | P9: 4247.8 | Q9: 4800.0 | R9: 4800 | T9: HRB400，盘螺，运费：50元/吨 | U9: 湖南盛世达钢材贸易有限公司 | V9: 刘地红：180 7012 3460 | AL9: 3791.150442
A10: 5 | B10: 钢筋 | C10: HPB400φ14 | D10: t | E10: 21.56 | F10: 4350 | G10: 4300 | H10: 4350 | I10: 4700 | J10: 4700 | K10: 4100 | L10: 4100 | M10: 4100 | N10: 4250 | O10: 4325.0 | P10: 4159.3 | Q10: 4700.0 | R10: 4800 | T10: HRB400，运费：50元/吨 | U10: 湖南盛世达钢材贸易有限公司 | V10: 刘地红：180 7012 3460
A11: 6 | B11: 钢筋 | C11: HPB400φ16 | D11: t | E11: 4.75 | F11: 4230 | G11: 4300 | H11: 4230 | I11: 4700 | J11: 4700 | K11: 4100 | L11: 4100 | M11: 4100 | N11: 4200 | O11: 4316.7 | P11: 4159.3 | Q11: 4700.0 | R11: 4800 | T11: HRB400，运费：50元/吨 | U11: 湖南盛世达钢材贸易有限公司 | V11: 刘地红：180 7012 3460
A12: 7 | B12: 钢筋 | C12: 圆钢 8 | D12: t | E12: 60.80 | F12: 4470 | G12: 4300 | H12: 4480 | I12: 4800 | J12: 4800 | K12: 4200 | L12: 4200 | M12: 4200 | N12: 4350 | O12: 4425.0 | P12: 4247.8 | Q12: 4800.0 | R12: 4800 | T12: HPB300，圆钢，运费：50元/吨 | U12: 湖南盛世达钢材贸易有限公司 | V12: 刘地红：180 7012 3460
A13: 8 | B13: P32.5水泥 | D13: t | E13: 7.26 | F13: 410 | G13: 480（海螺） | H13: 470 | I13: 530 | J13: 590 | K13: 570 | L13: 510 | M13: 480 | N13: 440 | O13: 520.0 | P13: =J13/1.13 -> 522.1 | Q13: =J13 -> 590.0 | R13: 530 | T13: 南方水泥 | V13: 曾：180 0073 6669
A14: 9 | B14: P42.5水泥 | D14: t | E14: 245.27 | F14: 490 | G14: 530（海螺） | H14: 510 | I14: 550 | J14: 600 | K14: 580 | L14: 530 | M14: 500 | N14: 460 | O14: 536.7 | P14: =J14/1.13 -> 531.0 | Q14: =J14 -> 600.0 | R14: 530 | V14: 曾：180 0073 6669
A15: 12 | B15: 商品非泵送砼 | C15: C15 | D15: m3 | E15: 115.00 | F15: 390 | H15: 415 | I15: 400 | J15: 400 | K15: 380 | L15: 380 | M15: 380 | N15: 410 | O15: =AVERAGE(I15:N15) -> 391.7 | P15: =I15/1.03 -> 388.3 | Q15: =I15 -> 400.0 | R15: 430 | S15: 3% | T15: 卵石，非泵，碎石上浮30元 | U15: 江西省圣源商品混凝土有限公司 | V15: 龙承峰：136 9796 3030
A16: 13 | B16: 商品非泵送砼 | C16: C20 | D16: m3 | E16: 60.73 | F16: 400 | H16: 420 | I16: 410 | J16: 410 | K16: 390 | L16: 390 | M16: 390 | N16: 420 | O16: 401.7 | P16: 398.1 | Q16: =I16 -> 410.0 | R16: 440 | T16: 卵石，非泵，碎石上浮30元 | U16: 江西省圣源商品混凝土有限公司 | V16: 龙承峰：136 9796 3030
A17: 14 | B17: 商品非泵送砼 | C17: C30 | D17: m3 | E17: 1978.00 | F17: 420 | H17: 425 | I17: 460 | J17: 460 | K17: 440 | L17: 440 | M17: 440 | N17: 440 | O17: 446.7 | P17: 446.6 | Q17: =I17 -> 460.0 | R17: 460 | T17: 卵石，非泵，碎石上浮30元 | U17: 江西省圣源商品混凝土有限公司 | V17: 龙承峰：136 9796 3030
A18: 15 | B18: 抗渗费 | D18: m3 | E18: 1246.00 | F18: 普通抗渗P6:20 P8：30 纤维抗渗P6：30 P8：40 | H18: 普通抗渗P6:20 P8：30 纤维抗渗P6：30 P8：40 | I18: 20 | J18: 20 | K18: 20 | L18: 20 | M18: 20 | N18: 20 | O18: 20.0 | P18: 19.4 | Q18: 20.0 | T18: 在原基础上上浮 | U18: 江西省圣源商品混凝土有限公司 | V18: 龙承峰：136 9796 3030
A19: 16 | B19: 泵送费 | D19: m3 | E19: 2153.00 | F19: 10 | H19: 10 | I19: 20 | J19: 20 | K19: 20 | L19: 20 | M19: 20 | N19: 20 | O19: 20.0 | P19: 19.4 | Q19: 20.0 | T19: 不足50方，则500元/次 | U19: 江西省圣源商品混凝土有限公司 | V19: 龙承峰：136 9796 3030
A20: 1 | B20: 碎石 | D20: m3 | E20: 820.00 | F20: =70*1.5 -> 105 | H20: =68*1.5 -> 102 | I20: 70 | J20: 70 | K20: 70 | L20: 70 | M20: 70 | N20: 67.5 | O20: 69.6 | R20: 70 | U20: 泰和县武溪石料厂 | V20: 廖文标：181 7065 1155 | W20: =X20*1.043 -> 118.34 | X20: =Y20+Z20+AA20+AB20+AC20 -> 113.46 | Y20: =60*1.5 -> 90.00 | AA20: =450/37.5*1.5 -> 18.00 | AB20: =(Y20+Z20+AA20)*0.03 -> 3.24 | AC20: =(Y20+Z20+AA20+AB20)*0.02 -> 2.22 | AD20: =X20*1.03 -> 116.87 | AE20: =W20*1.03 -> 121.89 | AF20: 3% | AH20: =1-F20/AD20 -> 10.16%
A21: 18 | B21: 卵石 | D21: m3 | E21: 43.00 | F21: =48*1.5 -> 72 | H21: =48*1.5 -> 72 | I21: 70 | J21: 70 | K21: 70 | L21: 70 | M21: 70 | N21: 67.5 | O21: 69.6 | P21: =I21/1.03 -> 68.0 | Q21: 70.0 | R21: 70 | U21: 泰和县武溪石料厂 | V21: 廖文标：181 7065 1155
A22: 2 | B22: 中粗砂 | D22: m3 | E22: 350.00 | F22: =83*1.5 -> 124.5 | H22: =83*1.5 -> 124.5 | I22: 90 | J22: 90 | K22: 90 | L22: 90 | M22: 90 | N22: 105 | O22: 92.5 | R22: 90 | T22: 政府采购，运费20元/吨 | U22: 泰和县武溪石料厂 | V22: 廖文标：181 7065 1155 | W22: =X22 -> 137.84 | X22: =Y22+Z22+AA22+AB22+AC22 -> 137.84 | Y22: =60*1.6 -> 96.00 | AA22: =300/15*1.6*1.1 -> 35.20 | AB22: =(Y22+Z22+AA22)*0.03 -> 3.94 | AC22: =(Y22+Z22+AA22+AB22)*0.02 -> 2.70 | AD22: =X22*1.03 -> 141.97 | AE22: =W22*1.03 -> 141.97 | AF22: 3% | AH22: =1-F22/AD22 -> 12.31%

Sheet 无信息价
A1: 泰和县马市生态文化旅游特色小镇PPP项目-马家洲纪念馆装饰工程材料品牌单
A2: 发包单位：江西千和旅游发展有限公司
A3: 序号 | B3: 材料名称 | C3: 规格 | D3: 单位 | E3: 品牌 | F3: 备注
A4: 1 | B4: 石膏板 | C4: 1.12mm厚纸面石膏板 2.详见图纸 | D4: m2 | E4: 可耐福，龙牌，泰山及同等档次
A5: 2 | B5: 石膏板 | C5: 1.12mm厚防潮纸面石膏板 2.详见图纸 | D5: m2 | E5: 可耐福，龙牌，泰山及同等档次
A6: 3 | B6: 石膏板 | C6: 1.9.5厚防水石膏板 2.详见图纸 | D6: m2 | E6: 可耐福，龙牌，泰山及同等档次
A7: 4 | B7: 石膏板 | C7: 1.12mm厚双面纸面石膏板 2.详见图纸 | D7: m2 | E7: 可耐福，龙牌，泰山及同等档次
A8: 5 | B8: 玻璃棉 | C8: 1.50mm厚玻璃棉（48Kg/m3） 2.详见图纸 | D8: m2 | E8: 国产优质
A9: 6 | B9: 矿棉板 | C9: 1.600*600白色暗架矿棉板 2.详见图纸 | D9: m2 | E9: 国产优质
A10: 7 | B10: 光油（清漆） | C10: 1.光油（清漆） 2.详见图纸 | D10: kg | E10: 国产优质
A11: 8 | B11: 亚光清漆 | C11: 1.亚光清漆 2.详见图纸 | D11: kg | E11: 国产优质
A12: 9 | B12: 乳胶漆 | C12: 1.墙面批平白色乳胶漆 2.详见图纸 | D12: kg | E12: 立邦、多乐士、华润及同等档次
A13: 10 | B13: 乳胶漆 | C13: 1.防潮白色乳胶漆 2.详见图纸 | D13: kg | E13: 立邦、多乐士、华润及同等档次
A14: 11 | B14: 乳胶漆 | C14: 1.墙面批平浅灰色乳胶漆 2.详见图纸 | D14: kg | E14: 立邦、多乐士、华润及同等档次
A15: 12 | B15: 暖灰色墙纸 | C15: 1.暖灰色墙纸 2.详见图纸 | D15: m2 | E15: 百家好，玉兰，德国艾仕及同等档次
A16: 13 | B16: 米黄色墙纸 | C16: 1.米黄色墙纸 2.详见图纸 | D16: m2 | E16: 百家好，玉兰，德国艾仕及同等档次
A17: 14 | B17: 地毯 | C17: 1.500×500灰色系方块阻燃地毯（L型成品不锈钢嵌条） 2.方块地毯配套弹性胶垫层 3.详见图纸 | D17: m2 | E17: 国产优质
A18: 15 | B18: 地毯 | C18: 1.500×500深灰色系方块阻燃地毯（L型成品不锈钢嵌条） 2.方块地毯配套弹性胶垫层 3.详见图纸 | D18: m2 | E18: 国产优质
A19: 16 | B19: 地砖地面 | C19: 1.800×800灰色系地砖地面(亚光面） 2.详见图纸 | D19: m2 | E19: 东鹏，唯美及同等档次 | F19: 甲供材
A20: 17 | B20: 地砖地面 | C20: 1.800*800灰色系地砖地面(亚光面） 2.详见图纸 | D20: m2 | E20: 东鹏，唯美及同等档次 | F20: 甲供材
A21: 18 | B21: 大理石 | C21: 1.20厚意大利灰大理石，机刨防滑槽（两条凹槽，尺寸5mm*5mm@20） 2.采用“防碱背涂剂”背涂处理，六面防潮处理 3.详见图纸 | D21: m2 | E21: 进口优质
A22: 19 | B22: 过门石 | C22: 1.A料20mm厚中国黑花岗岩门槛石 4.详见图纸 | D22: m2 | E22: 国产优质
A23: 20 | B23: 花岗岩 | C23: 1.A料20mm厚国产灰麻花岗岩凿毛板，机刨防滑槽（两条凹槽，尺寸5mm*5mm@20） 2.详见图纸 | D23: m2 | E23: 国产优质
A24: 21 | B24: 花岗岩 | C24: 1.A料80*350通长国产灰麻花岗岩毛石两端45°切角 2.详见图纸 | D24: m2 | E24: 国产优质
A25: 22 | B25: 花岗岩 | C25: 1.A料中国黑20厚带褂边窗台板 2.详见图纸 | D25: m | E25: 国产优质
A26: 23 | B26: 木地板 | C26: 1.30厚×120深棕色户外碳化竹木地板（表面刨防滑槽） 2.详见图纸 | D26: m3 | E26: 国产优质
A27: 24 | B27: 实木复合地板 | C27: 1.15mm厚九木机拼实木复合地板，耐磨转数9000以上； 2.详见图纸 | D27: m2 | E27: 国产优质
A28: 25 | B28: 实木地板 | C28: 1.25mm厚深棕色实木地板错拼 2.详见图纸 | D28: m2 | E28: 国产优质
A29: 26 | B29: 墙砖 | C29: 1.300×600墙砖 2.详见图纸 | D29: m2 | E29: 东鹏，唯美及同等档次 | F29: 甲供材
A30: 27 | B30: 墙砖 | C30: 1.100*100墙砖（浅灰色光釉面） 2.详见图纸 | D30: m2 | E30: 东鹏，唯美及同等档次
A31: 28 | B31: 不锈钢踢脚 | C31: 1.80高1.2mm厚拉丝不锈钢踢脚 2.详见图纸 | D31: m | E31: 304国产优质
A32: 29 | B32: 不锈钢踢脚 | C32: 1.1.5mm厚10mm宽灰色镜面不锈钢踢脚 2.详见图纸 | D32: m | E32: 304国产优质
A33: 30 | B33: 不锈钢踢脚线 | C33: 1.1.5mm厚灰色不锈钢踢脚线 2.详见图纸 | D33: m | E33: 304国产优质
A34: 31 | B34: 透光膜 | C34: 1.乳白色透光膜 2.详见图纸 | D34: m2 | E34: 国产优质
A35: 32 | B35: 防虫网 | C35: 1.钢丝防虫网 2.详见图纸 | D35: m2 | E35: 国产优质
A36: 33 | B36: 木饰板 | C36: 1.枫木色实木皮热压板 2.详见图纸 | D36: m2 | E36: 兔宝宝、莫干山、大亚及同等档次
A37: 34 | B37: 吸音板 | C37: 1.深木色条纹木心吸音板（15mm宽竖条纹） 2.防火吸音岩棉 3.详见图纸 | D37: m2 | E37: 国产优质
A38: 35 | B38: 金属板 | C38: 铝板 1.白色烤漆金属板 3.厚度：3mm 2.详见图纸 | D38: m2 | E38: 国产优质
A39: 36 | B39: 扪布板 | C39: 1.15mm厚米白色扪麻布扪布板 7.详见图纸 | D39: m2 | E39: 国产优质
A40: 37 | B40: 扪布板 | C40: 1.15mm厚灰色麻布扪布板 2.详见图纸 | D40: m2 | E40: 国产优质
A41: 38 | B41: 扪布板 | C41: 1.15mm厚灰色皮革扪皮板 7.详见图纸 | D41: m2 | E41: 国产优质
A42: 39 | B42: 金属板 | C42: 1.150高×50宽@150 1200*600灰色烤漆穿孔金属板 2.厚度：1.2mm厚背衬金属瓦楞 2.详见图纸 | D42: m2 | E42: 国产优质
A43: 40 | B43: 防火板 | C43: 1.白底艺术防火板 定制（马家洲建筑轮廓黑白画题材） 2.详见图纸 | D43: m2 | E43: 国产优质
A44: 41 | B44: 防火板 | C44: 1.米白色防火板（15mm厚） 2.详见图纸 | D44: m2 | E44: 国产优质
A45: 42 | B45: 墙纸板 | C45: 1.15mm厚手绘墙纸板 定制（马家洲建筑轮廓黑白画题材） 2.详见图纸 | D45: m2 | E45: 国产优质
A46: 43 | B46: 黑白画题材 | C46: 1.马家洲建筑轮廓黑白画题材 2.详见图纸 | D46: m2
A47: 44 | B47: 钢化玻璃 | C47: 1.12mm厚钢化净白玻璃背烤灰漆 2.详见图纸 | D47: m2 | E47: 国产优质
A48: 45 | B48: 木丝水泥板 | C48: 1.定制8mm厚木丝水泥板6000*1800，留缝5mm缝 2.详见图纸 | D48: m2 | E48: 国产优质
A49: 46 | B49: 金属格栅 | C49: 1.150mm高×50mm宽@150灰色烤漆金属格栅吊顶 2.厚度：1mm 3.详见图纸 | D49: m2 | E49: 国产优质
A50: 47 | B50: 水泥自流平 | C50: 1.水泥自流平 2.详见图纸 | D50: m3 | E50: 国产优质
A51: 48 | B51: 吊柜 | C51: 1.吊柜定制 2.枫木色柜体 3.详见图纸 | D51: m
A52: 49 | B52: 人造石台面吧台 | C52: 1.15mm厚白色人造石 4.详见图纸 | D52: m
A53: 50 | B53: 人造石台面地柜 | C53: 1.地柜定制 2.枫木色柜体 3.详见图纸 | D53: m
A54: 51 | B54: 卫生间成品隔断 | C54: 1.枫木色复合板（含五金件） 2.详见图纸 | D54: m2
A55: 52 | B55: 小便斗隔断 | C55: 1.10mm厚双面玉沙玻璃，1.5灰色镜面不锈钢包边（含五金件） 2.详见图纸 | D55: m2 | E55: 国产优质
A56: 53 | B56: 灰色不锈钢拉丝门套 | C56: 1.灰色不锈钢拉丝饰面门套 2.不锈钢厚度：1.5mm厚 3.详见图纸 | D56: m2 | E56: 304国产优质
A57: 54 | B57: 白色卵石 | C57: 1.ф50白色卵石 2.详见图纸 | D57: m3
A58: 55 | B58: 成品排水沟 | C58: 1.成品混凝土排水沟槽 2.详见图纸 | D58: m | E58: 国产优质
A59: 56 | B59: 不锈钢雨水篦子 | C59: 1.450mm*580mm，5mm厚不锈钢雨水篦子 2.详见图纸 | D59: m | E59: 国产优质
A60: 57 | B60: 素水泥干挂板 | C60: 素水泥干挂板 | D60: m2 | E60: 国产优质
A61: 58 | B61: 拉丝白钢标志 | C61: 1.字样详图纸 2.拉丝白钢标志 | D61: 组 | E61: 国产优质
A62: 59 | B62: 6mm防雾银镜 | C62: 1.化妆镜:6mm防雾银镜 2.详见图纸 | D62: m2 | E62: 国产优质
A63: 60 | B63: 成品门头板定制 | C63: 1.表面枫木色实木皮热压 2.详见图纸 | D63: m2 | E63: 国产优质
A64: 61 | B64: 成品防火门定制 | C64: 1.灰色防火门 2.详见图纸 | D64: m2 | E64: 国产优质
A65: 62 | B65: 成品防火门定制 | C65: 1.成品防火门定制（防火门芯，表面枫木色实木皮热压） 2.详见图纸 | D65: m2 | E65: 国产优质
A66: 63 | B66: 成品门定制 | C66: 1.表面枫木色实木皮热压 2.详见图纸 | D66: m2 | E66: 国产优质
A67: 64 | B67: 成品门定制 | C67: 1.1.5mm厚不锈钢板护板 2.详见图纸 | D67: m2 | E67: 国产优质
A68: 65 | B68: 成品门 | C68: 1.防火板（防火门芯，米白色防火门扇） 2.详见图纸 | D68: m2 | E68: 国产优质
A69: 66 | B69: 成品门 | C69: 1.15mm厚米白色皮革扪皮板 2.详见图纸 | D69: m2 | E69: 国产优质
A70: 67 | B70: 暗门 | C70: 1.15mm厚米白色麻布们布板饰面 2.详见图纸 | D70: m2 | E70: 国产优质
A71: 68 | B71: 暗门 | C71: 1.F米白色防火板 2.详见图纸 | D71: m2 | E71: 国产优质
A72: 69 | B72: 门头板 | C72: 1.灰色防火板 2.详见图纸 | D72: m2 | E72: 国产优质
A73: 70 | B73: 门头板 | C73: 1.15mm厚米白色皮革扪皮板，3*3鸡嘴缝拼接 2.详见图纸 | D73: m2 | E73: 国产优质
A74: 71 | B74: 门头板 | C74: 1.15mm厚米白色皮革扪皮板 2.详见图纸 | D74: m2 | E74: 国产优质
A75: 72 | B75: 门吸 | D75: 套 | E75: 国产优质
A76: 73 | B76: 执手锁 | C76: 1.带锁芯 2.详见图纸 | D76: 套 | E76: 国产优质
A77: 74 | B77: 执手锁 | C77: 1.不带锁芯 2.详见图纸 | D77: 套 | E77: 国产优质
A78: 75 | B78: 门拉手 | C78: 1.180*1000 2.详见图纸 | D78: 套 | E78: 国产优质
A79: 76 | B79: 门拉手 | C79: 1.150*600 2.详见图纸 | D79: 套 | E79: 国产优质
A80: 77 | B80: 暗扣手门锁 | C80: 1.详见图纸 | D80: 套 | E80: 国产优质

Sheet 独立费明细表 (hidden)
A1: 独立费明细表
F2: 单位：元
A3: 序号 | B3: 名称 | C3: 单位 | D3: 工程量 | E3: 分包综合单价 | F3: 审核后不税上报价 | G3: 备注
A4: 一 | B4: 栈道栏杆
A5: 1 | B5: 菠萝格(扶手、立柱) | C5: m | D5: =0.0067+0.0041*2*2/4 -> 0.01 | E5: 319.78 | F5: =14365.6755*D5*1.05 -> 162.91
A6: 2 | B6: 菠萝格扶手弧形制作费 | C6: m | E6: 30.00 | F6: =(300+200)/10 -> 50.00
A7: 3 | B7: 菠萝格扶手立柱安装人工 | C7: m | E7: 65.00 | F7: =(300+200)/5 -> 100.00
A8: 4 | B8: 5厚U型不锈钢 | C8: m | D8: =(0.02*2+0.09)*39.25/1000 -> 0.01 | E8: 82.88 | F8: =D8*20000 -> 102.05
A9: 5 | B9: 5厚U型不锈钢扶手弧形制作费 | C9: m | E9: 10.00 | F9: =(300+150)/10 -> 45.00
A10: 6 | B10: Ø12*2不锈钢管 | C10: m | D10: =24/4 -> 6.00 | E10: 27.00 | F10: =D10*27 -> 162.00
A11: 7 | B11: 镀锌钢索 | C11: m | D11: 6.00 | E11: 25.00 | F11: =D11*25 -> 150.00
A12: 8 | B12: 50*70方钢管 | C12: m | D12: =(0.15+1.087+0.173)*2/4*8.635/1000 -> 0.01 | E12: 79.05 | F12: =4319.35678675929*D12*1.05 -> 27.61
A13: 9 | B13: 钢管及不锈钢焊接人工 | C13: m | E13: 90.00 | F13: =(300+150)/5 -> 90.00
A14: 10 | B14: 油漆及不锈钢五金 | C14: m | E14: 130.00 | F14: =(300+150)/10 -> 45.00
A15: 11 | B15: 油漆人工 | C15: m | E15: 50.00 | F15: =(300+150)/8 -> 56.25
A16: 12 | B16: 小计 | E16: =SUM(E5:E15) -> 908.71 | F16: =SUM(F5:F15) -> 990.82 | G16: =1-E16/F16 -> 8.29%
A17: 二 | B17: 蓑衣亭栏杆一
A18: 1 | B18: 菠萝格 | C18: m | E18: 188.18 | F18: 188.18
A19: 2 | B19: 菠萝格扶手圆形制作费 | C19: m | E19: 80.00 | F19: 80.00
A20: 3 | B20: Ø50立柱钢管：71.65元/m | C20: m | E20: 71.65 | F20: 71.65
A21: 4 | B21: 安装人工：65元/米 | C21: m | E21: 65.00 | F21: 65.00
A22: 5 | B22: 5厚U型不锈钢：82.88元/m | C22: m | E22: 82.88 | F22: 82.88
A23: 6 | B23: 5厚U型不锈钢扶手弧形制作费：10元/米 | C23: m | E23: 10.00 | F23: 10.00
A24: 7 | B24: Ø25不锈钢管：110元/m（1m*4根） | C24: m | E24: 110.00 | F24: 110.00
A25: 8 | B25: 钢管及不锈钢焊接人工： 90元/米 | C25: m | E25: 90.00 | F25: 90.00
A26: 9 | B26: 油漆及不锈钢五金：130元/m | C26: m | E26: 130.00 | F26: 130.00
A27: 10 | B27: 油漆人工：50元/米 | C27: m | E27: 50.00 | F27: 50.00
B28: 小计 | E28: =SUM(E18:E27) -> 877.71 | F28: =SUM(F18:F27) -> 877.71
A29: 三 | B29: 蓑衣亭栏杆二
A30: 1 | B30: Ø25菠萝格防腐木圆柱：140元/m（1m*14根） | C30: m | E30: 140.00 | F30: 140.00
A31: 2 | B31: Ø25菠萝格防腐木圆柱制作费、油漆费、安装费：220元/m | C31: m | E31: 220.00 | F31: 220.00
A32: 3 | B32: 菠萝格：188.18元/m | C32: m | E32: 188.18 | F32: 188.18
A33: 4 | B33: 菠萝格扶手圆形制作费：80元/米 | C33: m | E33: 80.00 | F33: 80.00
A34: 5 | B34: 安装人工：65元/米 | C34: m | E34: 65.00 | F34: 65.00
A35: 6 | B35: 5厚U型不锈钢：82.88元/m | C35: m | E35: 82.88 | F35: 82.88
A36: 7 | B36: 5厚U型不锈钢扶手弧形制作费：10元/米 | C36: m | E36: 10.00 | F36: 10.00
A37: 8 | B37: 钢管及不锈钢焊接人工： 90元/米 | C37: m | E37: 90.00 | F37: 90.00
A38: 9 | B38: 油漆及不锈钢五金：130元/m | C38: m | E38: 130.00 | F38: 130.00
A39: 10 | B39: 油漆人工：50元/米 | C39: m | E39: 50.00 | F39: 50.00
A40: 11 | B40: 小计 | E40: =SUM(E30:E39) -> 1056.06 | F40: =SUM(F30:F39) -> 1056.06
A41: 四 | B41: 蓑衣亭钢格栅
A42: 1 | B42: Ø30钢管 | D42: =3.271/1000*6 -> 0.02 | E42: 75.00 | F42: =4319.35678675929*D42*1.05 -> 89.01
A43: 2 | B43: 钢管制作及安装费 | E43: 55.00 | F43: =1200*D42*1.4 -> 32.97
A44: 3 | B44: 油漆及人工费 | E44: 60.00 | F44: =(300+150)/10*2 -> 90.00
B45: 小计 | E45: =SUM(E42:E44) -> 190.00 | F45: =SUM(F42:F44) -> 211.98
A46: 五 | B46: 蓑衣亭屋面 | C46: m2
A47: 1 | B47: 材料 | C47: m2 | E47: 164.68 | F47: =60*1.3 -> 78.00
A48: 2 | B48: 人工 | C48: m2 | E48: 223.18 | F48: =(500+500)/4.5 -> 222.22
B49: 小计 | E49: =SUM(E47:E48) -> 387.86 | F49: =SUM(F47:F48) -> 300.22
A50: 六 | B50: 蓑衣亭塔尖
A51: 1 | B51: 材料 | C51: m2 | E51: 3500.00 | F51: =15989.2755*0.3 -> 4796.78
A52: 2 | B52: 人工 | C52: m2 | F52: 500.00
A53: 3 | B53: 机械 | C53: m2 | F53: =250*8 -> 2000.00
B54: 小计 | E54: =SUM(E51:E53) -> 3500.00 | F54: =SUM(F51:F53) -> 7296.78
A56: 七 | B56: 菠萝格封边 | C56: m2
A57: 1 | B57: 菠萝格30厚 | C57: m2 | E57: 540.00 | F57: =14365.6755*0.03*1.2 -> 517.16
A58: 2 | B58: 菠萝格木线条收口 | E58: 80.00
A59: 3 | B59: 人工安装及辅材 | E59: 60.00 | F59: =(300+200)/5 -> 100.00
B60: 小计 | C60: 个 | E60: =SUM(E57:E59) -> 680.00 | F60: =SUM(F57:F59) -> 617.16
A61: 八 | B61: 防腐木地面 | C61: 个 | K61: =1000/500 -> 2
A62: 1 | B62: 2500/3000*150*50厚菠萝格防腐木板 | C62: 个 | E62: 900.00 | F62: =14365.6755*0.05*1.15 -> 826.03
A63: 2 | B63: 50*50菠萝格龙骨 | D63: =2*0.05*0.05 -> 0.01 | E63: 225.00 | F63: =15989.2755*D63*1.02 -> 81.55
B64: 五金件 | D64: =(2/0.5) -> 4.00 | F64: =D64*10 -> 40.00
A65: 3 | B65: 防腐木安装人工费 | E65: 40.00 | F65: =(300+200)/10 -> 50.00
A66: 4 | B66: 防腐木油漆材料（2遍） | C66: m2 | E66: 30.00 | F66: =40*2 -> 80.00
B67: 防腐木油漆人工费（2遍） | C67: m | F67: =(300+200)/40*2 -> 25.00
A68: 5 | B68: 小计 | C68: m2 | E68: =SUM(E62:E66) -> 1195.00 | F68: =SUM(F62:F66) -> 1077.57
A69: 九 | B69: 透水混凝土
A70: 1 | B70: 10~30mm石子 | E70: 17.60 | F70: 17.60
A71: 2 | B71: 海螺425#水泥 | C71: m2 | E71: 16.00 | F71: 16.00
A72: 3 | B72: 色粉 | C72: m2 | E72: 8.00 | F72: 8.00
A73: 4 | B73: 薄膜 | E73: 1.60 | F73: 1.60
A74: 5 | B74: 切缝 | C74: m2 | E74: 1.60 | F74: 1.60
A75: 6 | B75: 胶结料 | C75: m2 | E75: 6.40 | F75: 6.40
A76: 7 | B76: 密封剂 | E76: 16.00 | F76: 16.00
A77: 8 | B77: 喷涂透明密封剂 | E77: 8.00 | F77: 8.00
A78: 9 | B78: 人工（含夜光石拼图、 路面撒夜光石、架空桥人工送料） | E78: 72.00 | J78: =E79/0.1 -> 1472 | K78: =F79/0.1 -> 2250
A79: 10 | B79: 小计 | C79: m2 | E79: =SUM(E70:E78) -> 147.20 | F79: =1500*0.15 -> 225.00
A80: 十 | B80: 荧光石路面（2CM厚满铺） | C80: m2
A81: 1 | B81: 荧光石 | C81: m2 | E81: 3625.00
A82: 2 | B82: 胶粘石胶水 | C82: m2 | E82: 8.00
A83: 3 | B83: 小计 | C83: m2 | E83: =SUM(E81:E82) -> 3633.00
